bitfinex-derivatives/quotes_BTCF0:USTF0_20241003
["timestamp","ask_amount","ask_price","bid_price","bid_amount"]
[1727948019745,0.29,60693.0,60691.0,0.01649]
[1727948021156,0.3,60693.0,60691.0,0.01649]
[1727948021343,0.372386,60693.0,60691.0,0.01649]
[1727948021660,0.01,60693.0,60691.0,0.01649]
[1727948021845,0.01,60693.0,60692.0,0.082387]
[1727948022557,0.019,60693.0,60692.0,0.082387]
[1727948022853,0.019,60693.0,60692.0,0.38602148]
[1727948023250,0.02,60693.0,60692.0,0.38602148]
[1727948023450,0.01,60693.0,60692.0,0.38602148]
[1727948023650,0.011,60693.0,60692.0,0.38602148]
[1727948025660,0.011,60693.0,60692.0,0.10602148]
[1727948027355,0.06157729,60693.0,60692.0,0.10602148]
[1727948028169,0.06157781,60693.0,60692.0,0.082387]
[1727948028455,0.06157781,60693.0,60691.0,0.01649]
[1727948028648,0.13296481,60692.0,60691.0,0.01649]
[1727948029753,0.13296481,60692.0,60691.0,0.01749]
[1727948029954,0.49376481,60692.0,60691.0,0.01749]
[1727948030155,0.55286398,60692.0,60691.0,0.01749]
[1727948030451,0.56086398,60692.0,60691.0,0.01749]
[1727948031056,0.47847698,60692.0,60691.0,0.01749]
[1727948031251,0.11767698,60692.0,60691.0,0.099878]
[1727948031446,0.05857781,60692.0,60691.0,0.01749]
[1727948031752,0.44096481,60692.0,60691.0,0.01749]
[1727948032550,0.44097536,60692.0,60691.0,0.01749]
[1727948032956,0.50007453,60692.0,60691.0,0.01749]
[1727948033457,0.44097536,60692.0,60691.0,0.01749]
[1727948034057,0.43097536,60692.0,60691.0,0.01749]
[1727948034453,0.380387,60692.0,60691.0,0.01749]
[1727948035253,0.390387,60692.0,60691.0,0.01749]
[1727948038962,0.751187,60692.0,60691.0,0.01749]
[1727948039360,0.751187,60692.0,60684.0,0.06877247]
[1727948039361,0.29,60685.0,60684.0,0.0038]
[1727948039563,0.29,60685.0,60681.0,0.082401]
[1727948040563,0.291,60685.0,60681.0,0.082401]
[1727948040766,0.291,60685.0,60681.0,0.083401]
[1727948041167,0.291,60685.0,60681.0,0.001]
[1727948041359,0.0824,60682.0,60681.0,0.001]
[1727948042270,0.0824,60682.0,60681.0,0.003]
[1727948042459,0.02418639,60685.0,60681.0,0.003]
[1727948042767,0.0038,60690.0,60685.0,0.082396]
[1727948042962,0.082389,60691.0,60685.0,0.082396]
[1727948043374,0.02342396,60691.0,60689.0,0.08239]
[1727948043592,0.3608,60692.0,60681.0,0.283]
[1727948043593,0.3608,60692.0,60690.0,0.08239]
[1727948043764,0.3608,60692.0,60690.0,0.07829]
[1727948043970,0.003,60691.0,60690.0,0.07829]
[1727948044661,0.3608,60696.0,60695.0,0.082383]
[1727948045167,0.00247255,60698.0,60697.0,0.08238]
[1727948045567,0.0038,60704.0,60695.0,0.28]
[1727948045788,0.0038,60708.0,60696.0,0.082381]
[1727948045982,0.0038,60708.0,60703.0,0.082372]
[1727948046164,0.082364,60709.0,60696.0,0.0038]
[1727948046364,0.082364,60709.0,60705.0,0.082369]
[1727948046365,0.086164,60709.0,60705.0,0.082369]
[1727948046564,0.10618787,60709.0,60705.0,0.082369]
[1727948046959,0.014,60706.0,60705.0,0.082369]
[1727948047468,0.014,60706.0,60699.0,0.3646]
[1727948047669,0.28,60703.0,60699.0,0.3608]
[1727948047875,0.082373,60702.0,60699.0,0.3608]
[1727948049375,0.082376,60700.0,60694.0,0.086184]
[1727948049685,0.08238,60697.0,60690.0,0.0038]
[1727948049888,0.10967658,60696.0,60689.0,0.3608]
[1727948050069,0.10967658,60695.0,60689.0,0.3608]
[1727948050377,0.082387,60692.0,60689.0,0.28661101]
[1727948050676,0.1772977,60691.0,60689.0,0.28661101]
[1727948050871,0.1772977,60690.0,60689.0,0.28661101]
[1727948052072,0.082392,60689.0,60684.0,0.082397]
[1727948052278,0.1772977,60688.0,60684.0,0.082397]
[1727948052478,0.1772977,60687.0,60686.0,0.082395]
[1727948052883,0.1772977,60687.0,60686.0,1.176755]
[1727948053479,0.17730114,60687.0,60686.0,1.176755]
[1727948053785,0.09719002,60687.0,60686.0,1.176755]
[1727948054670,0.10019002,60687.0,60686.0,1.176755]
[1727948055075,0.10019002,60687.0,60686.0,0.576755]
[1727948055372,0.16781114,60687.0,60686.0,0.576755]
[1727948055981,0.16781114,60687.0,60686.0,0.082395]
[1727948057480,0.16781114,60687.0,60686.0,0.64172747]
[1727948057481,0.007,60687.0,60686.0,0.64172747]
[1727948059090,0.0038,60697.0,60696.0,0.378871]
[1727948059281,0.3646,60705.0,60696.0,0.29649]
[1727948059489,0.3608,60705.0,60704.0,0.082371]
[1727948060380,0.3748,60705.0,60704.0,0.082371]
[1727948060883,0.014,60705.0,60704.0,0.082371]
[1727948061795,0.028,60705.0,60704.0,0.083371]
[1727948061989,0.028,60705.0,60704.0,0.084371]
[1727948064593,0.07857448,60705.0,60704.0,0.084371]
[1727948064792,0.16094348,60705.0,60704.0,0.002]
[1727948064999,0.082376,60700.0,60696.0,0.02029]
[1727948065181,0.36238,60697.0,60696.0,0.01649]
[1727948065382,0.36238,60697.0,60688.0,0.0038]
[1727948065383,0.082388,60692.0,60688.0,0.0038]
[1727948065588,0.05057448,60691.0,60684.0,0.00627145]
[1727948065783,0.21360711,60688.0,60684.0,0.00247145]
[1727948065980,0.05057448,60687.0,60684.0,0.00247145]
[1727948066184,0.05057448,60686.0,60685.0,0.082396]
[1727948067090,0.05058643,60686.0,60684.0,0.00247145]
[1727948067391,0.05058642,60685.0,60684.0,0.08486945]
[1727948069092,0.05158642,60685.0,60684.0,0.08486945]
[1727948069293,0.05358642,60685.0,60684.0,0.08486945]
[1727948071400,0.05358642,60685.0,60684.0,0.082398]
[1727948071808,0.003,60685.0,60684.0,0.082398]
[1727948074793,0.003,60685.0,60684.0,0.1310962]
[1727948076398,0.003,60685.0,60684.0,0.082398]
[1727948078197,0.28,60707.0,60693.0,0.082385]
[1727948078400,0.0038,60702.0,60691.0,0.3608]
[1727948078612,0.082369,60705.0,60699.0,0.078577]
[1727948078799,0.02390922,60703.0,60699.0,0.078577]
[1727948079102,0.082371,60704.0,60699.0,0.078577]
[1727948079409,0.082372,60703.0,60699.0,0.078577]
[1727948079597,0.082375,60701.0,60699.0,0.078577]
[1727948079797,0.11214726,60700.0,60699.0,0.07071931]
[1727948080009,0.12614726,60700.0,60699.0,0.07171931]
[1727948080594,0.15004698,60700.0,60699.0,0.07171931]
[1727948081110,0.16404698,60700.0,60699.0,0.07271931]
[1727948081299,0.42713075,60700.0,60699.0,0.07271931]
[1727948081494,0.40323103,60700.0,60699.0,0.07271931]
[1727948082103,0.14014726,60700.0,60699.0,0.07271931]
[1727948083406,0.08104861,60700.0,60690.0,0.01649]
[1727948083713,0.372388,60691.0,60690.0,0.01649]
[1727948083904,0.4820635,60691.0,60690.0,0.01649]
[1727948084597,0.4820635,60691.0,60680.0,0.082402]
[1727948084598,0.082395,60686.0,60680.0,0.082402]
[1727948084818,0.3996755,60685.0,60680.0,0.082402]
[1727948085001,0.1096755,60684.0,60680.0,0.082402]
[1727948085199,0.1096755,60683.0,60680.0,0.082402]
[1727948085508,0.372396,60685.0,60682.0,0.01649]
[1727948085809,0.10970529,60684.0,60682.0,0.01649]
[1727948086010,0.10970529,60683.0,60682.0,0.01649]
[1727948086808,0.39608434,60685.0,60682.0,0.01749]
[1727948087015,0.39608434,60685.0,60683.0,0.04870413]
[1727948087816,0.3608,60691.0,60689.0,0.08239]
[1727948087999,0.3845786,60691.0,60689.0,0.08239]
[1727948089111,0.3608,60691.0,60690.0,0.08239]
[1727948089314,0.3608,60707.0,60687.0,0.04870413]
[1727948089613,0.012,60691.0,60690.0,0.08239]
[1727948089919,0.02660186,60700.0,60697.0,0.082379]
[1727948090208,0.00247176,60700.0,60697.0,0.082379]
[1727948090617,0.00747176,60700.0,60697.0,0.082379]
[1727948091013,0.00747176,60700.0,60699.0,0.082377]
[1727948091716,0.01947176,60700.0,60699.0,0.082377]
[1727948092108,0.017,60700.0,60699.0,0.082377]
[1727948092616,0.026,60700.0,60699.0,0.083377]
[1727948093006,0.012,60700.0,60699.0,0.083377]
[1727948093214,0.019,60700.0,60699.0,0.084377]
[1727948097711,0.381376,60700.0,60699.0,0.002]
[1727948097925,0.309,60700.0,60690.0,0.082389]
[1727948098109,0.29,60691.0,60690.0,0.082389]
[1727948098420,0.29,60691.0,60685.0,0.082396]
[1727948098718,0.082391,60689.0,60685.0,0.082396]
[1727948099119,0.082391,60689.0,60687.0,0.082393]
[1727948100118,0.29,60690.0,60683.0,0.082399]
[1727948100432,0.29,60690.0,60682.0,0.01649]
[1727948100433,0.082399,60683.0,60682.0,0.01649]
[1727948101512,0.29,60689.0,60682.0,0.01649]
[1727948101712,0.29,60689.0,60682.0,0.01849]
[1727948101916,0.082399,60684.0,60682.0,0.01849]
[1727948102223,0.0505912,60683.0,60682.0,0.01849]
[1727948103029,0.0505912,60683.0,60682.0,0.01949]
[1727948103320,0.0505912,60683.0,60682.0,0.01749]
[1727948103517,0.0505912,60683.0,60682.0,0.01949]
[1727948104712,0.4937902,60683.0,60682.0,0.01949]
[1727948105115,0.082413,60673.0,60670.0,0.0039]
[1727948105420,0.29,60673.0,60670.0,0.082417]
[1727948105624,0.29,60677.0,60672.0,0.082414]
[1727948106321,0.372408,60677.0,60668.0,0.3608]
[1727948106519,0.372408,60677.0,60669.0,0.082418]
[1727948106723,0.001,60673.0,60671.0,0.01547201]
[1727948107315,0.001,60673.0,60672.0,0.012]
[1727948107721,0.001,60673.0,60671.0,0.01547201]
[1727948107916,0.001,60673.0,60671.0,0.02847201]
[1727948107917,0.42301544,60672.0,60671.0,0.02847201]
[1727948108320,0.49448,60671.0,60658.0,0.082432]
[1727948108525,0.29,60664.0,60660.0,0.08243]
[1727948108726,0.05060144,60663.0,60661.0,0.082429]
[1727948109337,0.03410144,60663.0,60661.0,0.082429]
[1727948109823,0.29,60664.0,60661.0,0.082429]
[1727948110023,0.001,60663.0,60661.0,0.093429]
[1727948110324,0.001,60663.0,60662.0,0.082428]
[1727948110625,0.0038,60672.0,60662.0,0.082428]
[1727948110626,0.0038,60672.0,60671.0,0.097905]
[1727948110814,0.02380037,60678.0,60671.0,0.01549]
[1727948111022,0.0038,60681.0,60679.0,0.082403]
[1727948111323,0.3608,60689.0,60682.0,0.0824]
[1727948111324,0.443191,60689.0,60682.0,0.0824]
[1727948111525,0.02429403,60684.0,60682.0,0.0824]
[1727948111925,0.10669203,60684.0,60677.0,0.082407]
[1727948112432,0.082399,60683.0,60678.0,0.082406]
[1727948113133,0.082402,60681.0,60673.0,0.082413]
[1727948113428,0.082406,60678.0,60673.0,0.082413]
[1727948113830,0.29,60679.0,60674.0,0.082411]
[1727948114022,0.3608,60681.0,60674.0,0.082411]
[1727948114531,0.29,60680.0,60674.0,0.082411]
[1727948115723,0.372403,60680.0,60674.0,0.082411]
[1727948116233,0.3618,60681.0,60677.0,0.082407]
[1727948116433,0.3618,60681.0,60674.0,0.002]
[1727948116633,0.3608,60681.0,60680.0,0.082403]
[1727948116933,0.02429403,60684.0,60674.0,0.002]
[1727948116934,0.02429403,60684.0,60683.0,0.082399]
[1727948117132,0.00247274,60686.0,60677.0,0.28]
[1727948117330,0.00247274,60686.0,60683.0,0.082399]
[1727948118334,0.00347274,60686.0,60683.0,0.082399]
[1727948118727,0.02702469,60686.0,60683.0,0.082399]
[1727948119127,0.02802469,60686.0,60683.0,0.082399]
[1727948119739,0.082396,60685.0,60679.0,0.082404]
[1727948120539,0.082396,60685.0,60680.0,0.082403]
[1727948121036,0.6508,60681.0,60673.0,0.0038]
[1727948121235,0.6508,60681.0,60672.0,0.082414]
[1727948122038,0.6508,60681.0,60669.0,0.00627241]
[1727948122338,0.6508,60681.0,60675.0,0.082409]
[1727948122541,0.082404,60680.0,60675.0,0.082409]
[1727948123244,0.082405,60679.0,60675.0,0.082409]
[1727948123431,0.08241,60675.0,60671.0,0.01649]
[1727948123736,0.082408,60677.0,60675.0,0.001]
[1727948124432,0.082409,60676.0,60675.0,0.001]
[1727948124948,0.13300736,60676.0,60675.0,0.001]
[1727948125147,0.001,60675.0,60674.0,0.082411]
[1727948125346,0.05159836,60675.0,60674.0,0.082411]
[1727948125530,0.05159836,60675.0,60671.0,0.01649]
[1727948125737,0.13301036,60674.0,60671.0,0.097905]
[1727948125936,0.05059836,60673.0,60671.0,0.097905]
[1727948126227,0.05059836,60672.0,60671.0,0.097905]
[1727948127439,0.05159836,60672.0,60671.0,0.097905]
[1727948127831,0.05159836,60672.0,60671.0,0.01549]
[1727948128033,0.05159836,60672.0,60671.0,0.01649]
[1727948128034,0.42401236,60672.0,60671.0,0.01649]
[1727948129241,0.05159836,60672.0,60671.0,0.01649]
[1727948129438,0.05159836,60672.0,60671.0,0.098905]
[1727948129640,0.05159836,60672.0,60671.0,0.097905]
[1727948129830,0.05259836,60672.0,60671.0,0.098905]
[1727948130031,0.21584077,60672.0,60671.0,0.098905]
[1727948130236,0.26643913,60672.0,60671.0,0.098905]
[1727948130450,0.05259836,60672.0,60671.0,0.098905]
[1727948131844,0.002,60672.0,60671.0,0.098905]
[1727948132044,0.084414,60672.0,60671.0,0.01649]
[1727948132235,0.445214,60672.0,60671.0,0.01649]
[1727948132545,0.082422,60666.0,60665.0,0.0038]
[1727948132840,0.082428,60662.0,60661.0,0.0165]
[1727948133043,0.082428,60662.0,60658.0,0.04853364]
[1727948133044,0.6508,60662.0,60658.0,0.04853364]
[1727948133344,0.082437,60655.0,60654.0,0.0038]
[1727948133542,0.272437,60655.0,60651.0,0.04873593]
[1727948133843,0.272437,60655.0,60649.0,0.082445]
[1727948134344,0.3608,60662.0,60649.0,0.082445]
[1727948134345,0.19,60650.0,60649.0,0.082445]
[1727948134550,0.1735,60650.0,60649.0,0.082445]
[1727948134959,0.19,60650.0,60646.0,0.04873593]
[1727948135137,0.082447,60649.0,60644.0,0.082452]
[1727948135339,0.19,60645.0,60644.0,0.082452]
[1727948135550,0.29,60647.0,60644.0,0.082452]
[1727948136245,0.29,60647.0,60645.0,0.082451]
[1727948136444,0.001,60645.0,60641.0,0.00247347]
[1727948136639,0.001,60645.0,60644.0,0.0165]
[1727948137149,0.001,60647.0,60644.0,0.0165]
[1727948137337,0.001,60647.0,60646.0,0.082449]
[1727948137533,0.0038,60656.0,60655.0,0.082437]
[1727948137744,0.3608,60662.0,60661.0,0.082429]
[1727948138045,0.3608,60662.0,60661.0,0.078629]
[1727948138250,0.3608,60662.0,60660.0,0.0165]
[1727948138545,0.6508,60662.0,60660.0,0.0165]
[1727948139136,0.082429,60661.0,60660.0,0.0165]
[1727948139337,0.082437,60656.0,60648.0,0.0039]
[1727948139538,0.6518,60662.0,60647.0,0.02403154]
[1727948139744,0.445228,60662.0,60660.0,0.001]
[1727948139948,0.10975257,60661.0,60660.0,0.001]
[1727948140350,0.10975257,60661.0,60660.0,0.08343]
[1727948140546,0.05061239,60661.0,60660.0,0.73323]
[1727948141053,0.001,60662.0,60661.0,0.082429]
[1727948141243,0.05060042,60675.0,60661.0,0.576989]
[1727948141449,0.05060042,60670.0,60660.0,0.65168]
[1727948141649,0.05060042,60669.0,60668.0,0.082419]
[1727948142345,0.05060224,60669.0,60668.0,0.082419]
[1727948142651,0.05160224,60670.0,60668.0,0.082419]
[1727948142850,0.05060224,60669.0,60668.0,0.082419]
[1727948143052,0.05060224,60669.0,60668.0,0.084419]
[1727948143444,0.05060224,60669.0,60668.0,0.002]
[1727948143752,1.14508224,60669.0,60660.0,0.3628]
[1727948143941,0.082429,60662.0,60660.0,0.002]
[1727948144253,0.13303124,60661.0,60656.0,0.082436]
[1727948144447,0.082432,60659.0,60656.0,0.082436]
[1727948144657,0.05060224,60658.0,60656.0,0.082436]
[1727948144841,0.05060224,60658.0,60655.0,0.00247301]
[1727948145059,0.372425,60664.0,60657.0,0.082434]
[1727948145249,0.05061168,60663.0,60657.0,0.082434]
[1727948145464,0.001,60661.0,60657.0,0.082434]
[1727948145651,0.29,60659.0,60657.0,0.082434]
[1727948145949,0.05161168,60658.0,60657.0,0.082434]
[1727948146353,0.05261168,60658.0,60657.0,0.082434]
[1727948146748,0.05261182,60658.0,60657.0,0.082434]
[1727948146945,0.002,60658.0,60657.0,0.082434]
[1727948148152,0.001,60658.0,60657.0,0.085434]
[1727948148651,0.083433,60658.0,60657.0,0.002]
[1727948148959,0.084433,60658.0,60657.0,0.003]
[1727948149651,0.002,60658.0,60657.0,0.003]
[1727948149843,0.002,60658.0,60657.0,0.085434]
[1727948150154,0.002,60658.0,60657.0,0.580034]
[1727948151147,0.002,60658.0,60657.0,0.085434]
[1727948151351,0.292,60658.0,60657.0,0.085434]
[1727948152245,0.374433,60658.0,60657.0,0.003]
[1727948153651,0.39852671,60658.0,60657.0,0.003]
[1727948154949,0.4491405,60658.0,60657.0,0.003]
[1727948155760,0.44914177,60658.0,60657.0,0.003]
[1727948156357,0.80994177,60658.0,60657.0,0.003]
[1727948156556,0.86908358,60658.0,60657.0,0.003]
[1727948157357,0.86808358,60658.0,60657.0,0.001]
[1727948157551,0.86908358,60658.0,60657.0,0.003]
[1727948157749,0.86808358,60658.0,60657.0,0.002]
[1727948157954,0.86808358,60658.0,60657.0,0.003]
[1727948160247,0.81746852,60658.0,60657.0,0.003]
[1727948160452,0.86808324,60658.0,60657.0,0.003]
[1727948161358,0.57808324,60658.0,60657.0,0.003]
[1727948161558,0.79200962,60658.0,60657.0,0.003]
[1727948161953,0.68225309,60658.0,60657.0,0.003]
[1727948162159,0.46832671,60658.0,60657.0,0.003]
[1727948163758,0.444233,60658.0,60657.0,0.003]
[1727948163953,0.001,60658.0,60657.0,0.085434]
[1727948164962,0.001,60658.0,60657.0,1.180034]
[1727948165259,0.3608,60667.0,60666.0,0.082422]
[1727948166558,0.3668,60667.0,60666.0,0.082422]
[1727948166857,0.3668,60667.0,60658.0,0.04862391]
[1727948167066,0.082422,60666.0,60663.0,0.082426]
[1727948167253,0.082422,60666.0,60658.0,0.0232619]
[1727948167254,0.3708,60667.0,60666.0,0.082422]
[1727948167756,0.08488983,60671.0,60670.0,0.088917]
[1727948167757,0.00247383,60671.0,60670.0,0.088917]
[1727948169363,0.00847383,60671.0,60670.0,0.088917]
[1727948169869,0.30147383,60671.0,60670.0,0.088917]
[1727948170070,0.35207255,60671.0,60670.0,0.088917]
[1727948171568,0.25207255,60671.0,60670.0,0.088917]
[1727948171861,0.06207255,60671.0,60670.0,0.088917]
[1727948172568,0.25207255,60671.0,60670.0,0.088917]
[1727948173464,0.33448755,60671.0,60670.0,0.0065]
[1727948174263,0.33448755,60671.0,60670.0,0.088917]
[1727948174866,0.33448755,60671.0,60670.0,0.0065]
[1727948177071,0.28388883,60671.0,60670.0,0.0065]
[1727948178069,0.28388883,60671.0,60662.0,0.0038]
[1727948178070,0.082426,60663.0,60662.0,0.0038]
[1727948178268,0.3608,60663.0,60655.0,0.32567301]
[1727948178475,0.082436,60656.0,60655.0,0.32567301]
[1727948178776,0.068435,60657.0,60655.0,0.32567301]
[1727948179467,0.068435,60657.0,60655.0,0.33167301]
[1727948180059,0.19,60656.0,60655.0,0.33167301]
[1727948181063,0.19,60656.0,60655.0,0.33567301]
[1727948181257,0.19,60656.0,60655.0,0.32967301]
[1727948181466,0.273436,60656.0,60655.0,0.01247301]
[1727948181666,0.273436,60656.0,60655.0,0.00847301]
[1727948181972,0.274436,60656.0,60655.0,0.00947301]
[1727948182772,0.08244,60653.0,60652.0,0.0165]
[1727948182980,0.082451,60645.0,60644.0,0.0038]
[1727948183170,0.082451,60645.0,60641.0,0.082456]
[1727948183470,0.1735,60642.0,60641.0,0.082456]
[1727948183771,0.082457,60640.0,60636.0,0.082462]
[1727948183971,0.19,60637.0,60636.0,0.082462]
[1727948184671,0.443251,60645.0,60641.0,0.092456]
[1727948184672,0.002,60642.0,60641.0,0.092456]
[1727948184879,0.002,60642.0,60641.0,0.282456]
[1727948185177,0.0038,60654.0,60651.0,0.082442]
[1727948185381,0.3608,60660.0,60651.0,0.082442]
[1727948185382,0.19,60655.0,60651.0,0.082442]
[1727948185678,0.372437,60655.0,60651.0,0.082442]
[1727948186478,0.29,60655.0,60651.0,0.082442]
[1727948186775,0.02351934,60656.0,60651.0,0.082442]
[1727948186975,0.02351934,60656.0,60646.0,0.02425611]
[1727948186976,0.02351934,60656.0,60653.0,0.082439]
[1727948187164,0.372432,60659.0,60647.0,0.3608]
[1727948187365,0.39627694,60659.0,60654.0,0.082438]
[1727948188171,0.002,60656.0,60654.0,0.082438]
[1727948188674,0.001,60656.0,60654.0,0.082438]
[1727948189677,0.082434,60657.0,60654.0,0.087438]
[1727948189972,0.372437,60655.0,60654.0,0.005]
[1727948190377,0.372437,60655.0,60651.0,0.082442]
[1727948190678,0.372437,60655.0,60654.0,0.006]
[1727948191271,0.734237,60655.0,60654.0,0.006]
[1727948191566,0.735237,60655.0,60654.0,0.006]
[1727948191974,0.84500791,60655.0,60654.0,0.006]
[1727948193884,0.55500791,60655.0,60654.0,0.006]
[1727948194782,0.49685785,60655.0,60654.0,0.005]
[1727948194980,0.49685376,60655.0,60654.0,0.005]
[1727948195177,0.78685376,60655.0,60654.0,0.005]
[1727948195578,0.736237,60655.0,60654.0,0.005]
[1727948196079,0.735237,60655.0,60653.0,0.082439]
[1727948196577,0.735237,60655.0,60646.0,0.0270567]
[1727948196578,0.3628,60655.0,60646.0,0.0270567]
[1727948196782,0.082438,60654.0,60651.0,0.082442]
[1727948196984,0.3628,60655.0,60646.0,0.0232567]
[1727948197179,0.3608,60655.0,60654.0,0.082438]
[1727948197479,0.41241651,60655.0,60654.0,0.082438]
[1727948197877,0.41141651,60655.0,60654.0,0.082438]
[1727948198175,0.41241651,60655.0,60654.0,0.082438]
[1727948199371,0.3618,60655.0,60654.0,0.082438]
[1727948199571,0.41241513,60655.0,60654.0,0.082438]
[1727948199772,0.41141513,60655.0,60654.0,0.085438]
[1727948200181,0.3608,60655.0,60654.0,0.085438]
[1727948200567,0.3608,60655.0,60654.0,0.084438]
[1727948201178,0.3608,60655.0,60654.0,0.085438]
[1727948201374,0.3608,60655.0,60654.0,0.086438]
[1727948201570,0.3608,60655.0,60654.0,0.085438]
[1727948202572,0.36252001,60660.0,60659.0,0.082432]
[1727948202779,0.65252001,60670.0,60660.0,0.08243]
[1727948202983,0.082427,60663.0,60660.0,0.08243]
[1727948204682,0.085427,60663.0,60660.0,0.08243]
[1727948204989,0.090427,60663.0,60660.0,0.08243]
[1727948205480,0.087427,60663.0,60660.0,0.08243]
[1727948205687,0.19,60661.0,60660.0,0.08243]
[1727948207789,0.19,60661.0,60660.0,0.08443]
[1727948208284,0.21405141,60661.0,60660.0,0.08443]
[1727948208594,0.19,60661.0,60660.0,0.08443]
[1727948210179,0.3608,60670.0,60667.0,0.08242]
[1727948210381,0.3608,60670.0,60660.0,0.0058]
[1727948210588,0.38441127,60670.0,60660.0,0.002]
[1727948210781,0.38441127,60670.0,60667.0,0.082419]
[1727948211192,0.39241127,60670.0,60660.0,0.02973914]
[1727948211398,0.47482827,60670.0,60666.0,0.082421]
[1727948211584,0.19,60668.0,60666.0,0.082421]
[1727948213093,0.19,60668.0,60660.0,0.0038]
[1727948213282,0.19,60665.0,60656.0,0.0038]
[1727948213486,0.38441127,60670.0,60660.0,0.001]
[1727948213689,0.272429,60661.0,60660.0,0.001]
[1727948213987,0.082437,60655.0,60654.0,0.08491006]
[1727948214294,0.272437,60655.0,60654.0,0.08491006]
[1727948214488,0.19,60655.0,60654.0,0.08491006]
[1727948215110,0.29975843,60655.0,60654.0,0.08491006]
[1727948215295,0.30075843,60655.0,60654.0,0.08591006]
[1727948216295,0.30175843,60655.0,60654.0,0.08991006]
[1727948216995,0.11175843,60655.0,60654.0,0.08991006]
[1727948221395,0.11175843,60655.0,60654.0,1.37451006]
[1727948221628,0.633218,60670.0,60654.0,1.37451006]
[1727948221629,0.21774727,60665.0,60661.0,0.082429]
[1727948221807,0.0038,60674.0,60664.0,0.082425]
[1727948221991,0.3608,60676.0,60670.0,0.082417]
[1727948222193,0.31955754,60676.0,60673.0,0.082412]
[1727948222495,0.28654927,60678.0,60675.0,0.0486201]
[1727948222694,0.02415209,60678.0,60677.0,0.082407]
[1727948222899,0.19,60682.0,60675.0,0.06484343]
[1727948223096,0.443199,60683.0,60680.0,0.082403]
[1727948223395,0.443199,60683.0,60681.0,0.082401]
[1727948223786,0.3608,60683.0,60681.0,0.082401]
[1727948224012,0.38444362,60683.0,60681.0,0.082401]
[1727948224395,0.19,60682.0,60681.0,0.082401]
[1727948225701,0.19,60682.0,60680.0,0.001]
[1727948225894,0.204,60682.0,60681.0,0.001]
[1727948226595,0.082407,60677.0,60676.0,0.04860196]
[1727948226796,0.082411,60674.0,60673.0,0.04860196]
[1727948227103,0.082417,60670.0,60669.0,0.04860196]
[1727948227296,0.082419,60668.0,60667.0,0.3608]
[1727948229313,0.087419,60668.0,60667.0,0.3608]
[1727948230215,0.35193151,60668.0,60667.0,0.3608]
[1727948230612,0.35893151,60668.0,60667.0,0.3608]
[1727948231011,0.27651251,60668.0,60667.0,0.443221]
[1727948232018,0.27651251,60668.0,60667.0,1.537701]
[1727948232019,0.06260166,60668.0,60667.0,1.537701]
[1727948234220,0.06260166,60668.0,60667.0,0.937701]
[1727948234715,0.012,60668.0,60667.0,0.443221]
[1727948234923,0.14501554,60668.0,60667.0,0.3608]
[1727948235311,0.082425,60664.0,60660.0,0.08243]
[1727948235509,0.19,60662.0,60659.0,0.3608]
[1727948235820,0.05059654,60661.0,60660.0,0.08243]
[1727948236527,0.05059654,60661.0,60660.0,0.08443]
[1727948236716,0.05059654,60661.0,60660.0,1.36899]
[1727948237117,0.0038,60671.0,60664.0,0.082425]
[1727948237424,0.082414,60672.0,60670.0,0.082416]
[1727948237729,0.10665166,60672.0,60670.0,0.082416]
[1727948238227,0.10665166,60672.0,60664.0,0.0038]
[1727948238415,0.1938,60678.0,60669.0,0.19]
[1727948238727,0.633199,60683.0,60679.0,0.082404]
[1727948239110,0.082401,60682.0,60679.0,0.082404]
[1727948239315,0.082402,60681.0,60679.0,0.082404]
[1727948239920,0.082403,60680.0,60679.0,0.082404]
[1727948240912,0.096403,60680.0,60679.0,0.082404]
[1727948241824,0.028,60680.0,60674.0,0.08621]
[1727948242025,0.028,60680.0,60670.0,0.0038]
[1727948242026,0.19,60675.0,60670.0,0.0038]
[1727948242220,0.028,60680.0,60668.0,0.0038]
[1727948242221,0.082418,60669.0,60668.0,0.0038]
[1727948242421,0.19,60670.0,60666.0,0.082421]
[1727948242422,0.082419,60668.0,60666.0,0.082421]
[1727948242826,0.082421,60667.0,60666.0,0.082421]
[1727948243528,0.19,60670.0,60661.0,0.0038]
[1727948243529,0.21351407,60670.0,60661.0,0.0038]
[1727948243825,0.19,60663.0,60662.0,0.082427]
[1727948244224,0.24060662,60663.0,60662.0,0.082427]
[1727948244619,0.32303262,60663.0,60662.0,0.082427]
[1727948244814,0.08243,60660.0,60659.0,0.72244]
[1727948245024,0.082433,60658.0,60657.0,0.00247271]
[1727948245217,0.13303962,60658.0,60657.0,0.00247271]
[1727948245522,0.34672471,60658.0,60657.0,0.00247271]
[1727948245827,0.13303962,60658.0,60657.0,0.00247271]
[1727948246928,0.05060662,60658.0,60657.0,0.00447271]
[1727948247127,0.26430045,60658.0,60657.0,0.08690671]
[1727948247423,0.05060662,60658.0,60657.0,0.08690671]
[1727948247925,0.05160662,60658.0,60657.0,0.09090671]
[1727948248427,0.24160919,60658.0,60657.0,0.00847271]
[1727948248626,0.32404219,60658.0,60657.0,0.00847271]
[1727948249223,0.53773602,60658.0,60657.0,0.00847271]
[1727948249628,0.32404219,60658.0,60657.0,0.00847271]
[1727948250326,0.53778667,60658.0,60657.0,0.00847271]
[1727948251921,0.38317562,60658.0,60657.0,0.00847271]
[1727948252128,0.32404219,60658.0,60657.0,0.00847271]
[1727948252326,0.273433,60658.0,60657.0,0.00847271]
[1727948253322,0.29719897,60658.0,60657.0,0.00847271]
[1727948253919,0.10719897,60658.0,60657.0,0.00847271]